bitfinex/quotes_BTCUSD_20250904
["timestamp","ask_amount","ask_price","bid_price","bid_amount"]
[1757026144484,1.48451289,110980.0,110970.0,0.0004]
[1757026144690,1.47638475,110980.0,110970.0,0.0004]
[1757026144897,1.4615888,110980.0,110970.0,0.0004]
[1757026146191,1.44466789,110980.0,110970.0,0.0004]
[1757026146408,1.46157973,110980.0,110970.0,0.0004]
[1757026146594,1.46970787,110980.0,110970.0,0.0004]
[1757026147005,1.48450532,110980.0,110970.0,0.0004]
[1757026147932,1.48450549,110980.0,110970.0,0.0004]
[1757026149038,1.82188643,110980.0,110970.0,1e-08]
[1757026149455,1.87059468,110980.0,110970.0,1e-08]
[1757026149811,1.81179067,110980.0,110970.0,1e-08]
[1757026150008,1.96251067,110980.0,110970.0,1e-08]
[1757026150871,1.96251241,110980.0,110970.0,1e-08]
[1757026151406,1.81179241,110980.0,110970.0,1e-08]
[1757026151617,1.93002955,110980.0,110970.0,1e-08]
[1757026152396,1.61358743,110980.0,110970.0,1e-08]
[1757026153184,1.64605836,110980.0,110970.0,1e-08]
[1757026153865,1.64605789,110980.0,110970.0,1e-08]
[1757026155240,1.64605759,110980.0,110970.0,1e-08]
[1757026155452,2.91199995,110980.0,110970.0,1e-08]
[1757026159945,2.76127995,110980.0,110970.0,1e-08]
[1757026160240,2.91195332,110980.0,110970.0,1e-08]
[1757026160542,2.91195205,110980.0,110970.0,1e-08]
[1757026161703,2.91195199,110980.0,110970.0,1e-08]
[1757026164649,2.76127199,110980.0,110970.0,1e-08]
[1757026164853,2.91195199,110980.0,110970.0,1e-08]
[1757026166495,2.76127199,110980.0,110970.0,1e-08]
[1757026166708,2.91195199,110980.0,110970.0,1e-08]
[1757026168766,2.91191199,110980.0,110970.0,1e-08]
[1757026170139,2.76127199,110980.0,110970.0,1e-08]
[1757026170354,2.91191199,110980.0,110970.0,1e-08]
[1757026173782,2.76127199,110980.0,110970.0,1e-08]
[1757026174121,2.91191199,110980.0,110970.0,1e-08]
[1757026175189,2.87944106,110980.0,110970.0,1e-08]
[1757026176279,2.87946773,110980.0,110970.0,1e-08]
[1757026176708,2.72882773,110980.0,110970.0,1e-08]
[1757026177114,2.87946773,110980.0,110970.0,1e-08]
[1757026186284,2.85372709,110980.0,110970.0,1e-08]
[1757026187203,2.87946773,110980.0,110970.0,1e-08]
[1757026187956,2.8731219,110980.0,110970.0,1e-08]
[1757026188156,2.8646608,110980.0,110970.0,1e-08]
[1757026188508,2.85408629,110980.0,110970.0,1e-08]
[1757026188824,2.87947709,110980.0,110970.0,1e-08]
[1757026189181,2.85408629,110980.0,110970.0,1e-08]
[1757026189781,2.84773859,110980.0,110970.0,1e-08]
[1757026190200,2.84769859,110980.0,110970.0,1e-08]
[1757026191333,2.86250983,110980.0,110970.0,1e-08]
[1757026191531,2.85404626,110980.0,110970.0,1e-08]
[1757026191934,2.84769859,110980.0,110970.0,1e-08]
[1757026192855,2.87943631,110980.0,110970.0,1e-08]
[1757026201889,2.72883631,110980.0,110970.0,1e-08]
[1757026202200,2.87939631,110980.0,110970.0,1e-08]
[1757026203399,2.72883631,110980.0,110970.0,1e-08]
[1757026203542,2.87939631,110980.0,110970.0,1e-08]
[1757026204635,2.87093292,110980.0,110970.0,1e-08]
[1757026204932,2.87939617,110980.0,110970.0,1e-08]
[1757026205092,2.85995698,110980.0,110970.0,1e-08]
[1757026205294,2.81124873,110980.0,110970.0,1e-08]
[1757026205840,2.87949748,110980.0,110970.0,1e-08]
[1757026207442,2.87949758,110980.0,110970.0,1e-08]
[1757026208213,2.87949757,110980.0,110970.0,1e-08]
[1757026209861,0.59116771,110970.0,110960.0,1e-08]
[1757026210071,1.42797262,110970.0,110960.0,1e-08]
[1757026210271,1.43317262,110970.0,110960.0,1e-08]
[1757026210451,2.06972855,110970.0,110960.0,0.00210001]
[1757026211281,1.08669434,110970.0,110960.0,0.00210001]
[1757026211464,2.03610764,110970.0,110960.0,0.00210001]
[1757026211705,2.03922573,110970.0,110960.0,0.00210001]
[1757026211903,2.04022573,110970.0,110960.0,1e-08]
[1757026213406,2.48572573,110970.0,110960.0,1e-08]
[1757026213979,2.48571686,110970.0,110960.0,1e-08]
[1757026215370,2.51819558,110970.0,110960.0,1e-08]
[1757026215577,2.5183265,110970.0,110960.0,1e-08]
[1757026217617,2.51832194,110970.0,110960.0,1e-08]
[1757026222327,2.51829935,110970.0,110960.0,1e-08]
[1757026224797,2.48582063,110970.0,110960.0,1e-08]
[1757026226042,2.48582044,110970.0,110960.0,1e-08]
[1757026227840,1.38571622,110970.0,110960.0,1e-08]
[1757026228057,2.48578044,110970.0,110960.0,1e-08]
[1757026229461,2.33526044,110970.0,110960.0,1e-08]
[1757026229677,2.51824474,110970.0,110960.0,0.00210001]
[1757026229911,2.51512474,110970.0,110960.0,0.00210001]
[1757026230705,2.36460474,110970.0,110960.0,0.00210001]
[1757026230838,2.51512474,110970.0,110960.0,0.00210001]
[1757026233311,2.48740922,110970.0,110960.0,0.00210001]
[1757026233505,2.48265878,110970.0,110960.0,0.00210001]
[1757026234099,2.48577878,110970.0,110960.0,0.00210001]
[1757026234479,2.33525878,110970.0,110960.0,0.00210001]
[1757026234684,2.48577878,110970.0,110960.0,0.00210001]
[1757026236141,2.33525878,110970.0,110960.0,0.00210001]
[1757026236374,2.48577936,110970.0,110960.0,0.00210001]
[1757026237089,2.33525936,110970.0,110960.0,0.00210001]
[1757026237408,2.48577936,110970.0,110960.0,0.00210001]
[1757026238055,2.33525936,110970.0,110960.0,0.00210001]
[1757026238304,2.48577936,110970.0,110960.0,0.00210001]
[1757026241420,2.33525936,110970.0,110960.0,0.00210001]
[1757026241640,2.48261936,110970.0,110960.0,0.00210001]
[1757026244156,2.48555936,110970.0,110960.0,0.00210001]
[1757026246256,2.4855653,110970.0,110960.0,0.00210001]
[1757026246722,2.4855653,110970.0,110960.0,1e-08]
[1757026246848,2.48556903,110970.0,110960.0,1e-08]
[1757026248844,1.96355429,110970.0,110960.0,0.00508001]
[1757026248994,1.90248845,110970.0,110960.0,0.00508001]
[1757026251127,1.87674781,110970.0,110960.0,0.00508001]
[1757026254556,1.90923603,110970.0,110960.0,0.00508001]
[1757026255515,1.37343298,110970.0,110960.0,0.00508001]
[1757026255687,1.05057221,110970.0,110960.0,0.12409906]
[1757026256044,1.65657666,110970.0,110960.0,0.12409906]
[1757026256200,1.62386287,110970.0,110960.0,0.12409906]
[1757026257056,1.62186287,110970.0,110960.0,0.12409906]
[1757026257296,1.62186287,110970.0,110960.0,0.12609906]
[1757026257516,1.62186287,110970.0,110960.0,0.12709906]
[1757026258373,1.6023721,110970.0,110960.0,0.12709906]
[1757026258819,1.6023721,110970.0,110960.0,0.19353906]
[1757026259034,1.6023721,110970.0,110960.0,0.191286]
[1757026259517,1.6023721,110970.0,110960.0,0.37153113]
[1757026259518,0.00361373,110970.0,110960.0,0.37153113]
[1757026259740,0.00361373,110970.0,110960.0,0.52197113]
[1757026259951,0.32012847,110970.0,110960.0,0.52197113]
[1757026262075,0.00361373,110970.0,110960.0,0.52197113]
[1757026262883,0.00361373,110970.0,110960.0,0.37153113]
[1757026263076,0.00361373,110970.0,110960.0,0.52197113]
[1757026263322,0.00361373,110970.0,110960.0,0.52097113]
[1757026263584,0.00361373,110970.0,110960.0,0.51997113]
[1757026263911,0.00361373,110970.0,110960.0,0.52197113]
[1757026264097,0.00361373,110970.0,110960.0,0.51997113]
[1757026264535,0.00361373,110970.0,110960.0,0.52297113]
[1757026264785,0.00361373,110970.0,110960.0,0.54390995]
[1757026264994,0.00046979,110990.0,110980.0,0.18021265]
[1757026265200,0.00046979,110990.0,110980.0,0.42252864]
[1757026265404,0.34406986,110990.0,110980.0,0.45245864]
[1757026266912,0.34406986,110990.0,110980.0,0.45445864]
[1757026268130,0.02755512,110990.0,110980.0,0.45645864]
[1757026268374,0.34406986,110990.0,110980.0,0.45645864]
[1757026268777,0.02755512,110990.0,110980.0,0.45645864]
[1757026268952,0.00046979,110990.0,110980.0,0.45645864]
[1757026273647,0.00046979,110990.0,110980.0,0.800056]
[1757026273848,0.00046979,110990.0,110980.0,0.48354126]
[1757026274799,0.00046979,110990.0,110980.0,0.50448008]
[1757026275589,0.00046979,110990.0,110980.0,1.20899482]
[1757026276040,0.00046979,110990.0,110980.0,1.21199482]
[1757026276231,0.00046979,110990.0,110980.0,1.20999482]
[1757026276411,0.00046979,110990.0,110980.0,1.20699482]
[1757026276616,0.00046979,110990.0,110980.0,1.20999482]
[1757026276818,0.00046979,110990.0,110980.0,1.05659482]
[1757026276994,0.00046979,110990.0,110980.0,0.89544008]
[1757026277248,0.00046979,110990.0,110980.0,1.29544008]
[1757026277597,0.00046979,110990.0,110980.0,1.61146982]
[1757026277799,0.00046979,110990.0,110980.0,1.61446982]
[1757026278093,0.00046979,110990.0,110980.0,1.29844008]
[1757026278278,0.00046979,110990.0,110980.0,1.61446982]
[1757026278464,0.00046979,110990.0,110980.0,1.29844008]
[1757026278668,0.00046979,110990.0,110980.0,1.61446982]
[1757026279850,0.00046979,110990.0,110980.0,1.29844008]
[1757026280053,0.00046979,110990.0,110980.0,1.61446982]
[1757026280659,0.00046979,110990.0,110980.0,1.46410982]
[1757026280833,0.00046979,110990.0,110980.0,1.29844008]
[1757026281037,0.00046979,110990.0,110980.0,1.61446982]
[1757026282193,0.00046979,110990.0,110980.0,1.61442982]
[1757026283861,0.00046979,110990.0,110980.0,1.56442982]
[1757026284321,0.00046979,110990.0,110980.0,1.41410982]
[1757026284459,0.00046979,110990.0,110980.0,1.56442982]
[1757026287346,0.00046979,110990.0,110980.0,1.41410982]
[1757026287652,0.00046979,110990.0,110980.0,1.56442982]
[1757026288149,0.00046979,110990.0,110980.0,1.24840008]
[1757026288351,0.00046979,110990.0,110980.0,1.56442982]
[1757026290696,0.00046979,110990.0,110980.0,1.24840008]
[1757026291010,0.00046979,110990.0,110980.0,0.65229126]
[1757026291111,0.31848953,110990.0,110980.0,0.31229126]
[1757026291337,0.63451927,110990.0,110980.0,0.43254864]
[1757026291564,0.65392668,110990.0,110980.0,0.43254864]
[1757026292431,0.65392668,110990.0,110980.0,0.28521864]
[1757026292570,0.65392668,110990.0,110980.0,0.43254864]
[1757026292771,0.65392668,110990.0,110980.0,0.43553864]
[1757026293390,0.65193668,110990.0,110980.0,0.43553864]
[1757026295276,0.65392668,110990.0,110980.0,0.43553864]
[1757026295485,0.0198772,110990.0,110980.0,0.43556864]
[1757026295698,0.65193668,110990.0,110980.0,0.43556864]
[1757026295855,0.33590694,110990.0,110980.0,0.43556864]
[1757026296064,0.33791694,110990.0,110980.0,0.43556864]
[1757026296487,0.65394668,110990.0,110980.0,0.28524864]
[1757026296828,0.87015696,110990.0,110980.0,0.25019599]
[1757026297027,1.1861867,110990.0,110980.0,0.09991599]
[1757026297231,1.1861867,110990.0,110980.0,0.25244864]
[1757026297448,1.24576397,110990.0,110980.0,0.25019599]
[1757026297992,1.24576397,110990.0,110980.0,0.24719599]
[1757026298190,1.24576397,110990.0,110980.0,0.24819599]
[1757026298400,1.21327575,110990.0,110980.0,0.24819599]
[1757026298812,1.21327575,110990.0,110980.0,0.24319599]
[1757026299011,1.22139909,110990.0,110980.0,0.24319599]
[1757026299208,1.2457024,110990.0,110980.0,0.24519599]
[1757026300479,0.92967266,110990.0,110980.0,0.24519599]
[1757026301212,0.89718444,110990.0,110980.0,0.24519599]
[1757026302256,0.88874545,110990.0,110980.0,0.24519599]
[1757026304197,0.88874545,110990.0,110980.0,0.42540864]
[1757026304423,0.67623999,110990.0,110980.0,0.43053864]
[1757026304599,0.65193668,110990.0,110980.0,0.43053864]
[1757026305396,0.65193668,110990.0,110980.0,0.49693864]
[1757026306405,0.65394668,110990.0,110980.0,0.49693864]
[1757026307948,0.65193668,110990.0,110980.0,0.49693864]
[1757026308443,0.63252927,110990.0,110980.0,0.49693864]
[1757026308621,0.63453927,110990.0,110980.0,0.49693864]
[1757026308848,0.81473568,110990.0,110980.0,0.49693864]
[1757026309350,0.81473568,110990.0,110980.0,0.49388864]
[1757026309853,0.81794568,110990.0,110980.0,0.49388864]
[1757026311173,0.81794568,110990.0,110980.0,0.34360864]
[1757026311482,0.81794568,110990.0,110980.0,0.31163599]
[1757026311640,0.81794568,110990.0,110980.0,0.49184864]
[1757026311839,0.81794568,110990.0,110980.0,0.31163599]
[1757026312279,0.81794568,110990.0,110980.0,0.49184864]
[1757026312839,0.81794568,110990.0,110980.0,0.31163599]
[1757026315750,0.81794568,110990.0,110980.0,0.16131599]
[1757026316008,0.81794568,110990.0,110980.0,0.31159599]
[1757026316304,0.81794568,110990.0,110980.0,0.16131599]
[1757026316507,0.81794568,110990.0,110980.0,0.31159599]
[1757026316735,0.81473568,110990.0,110980.0,0.31367599]
[1757026316910,0.00046979,110990.0,110980.0,0.49693864]
[1757026317123,0.31649953,110990.0,110980.0,0.49693864]
[1757026319348,0.00046979,110990.0,110980.0,0.49693864]
[1757026319484,0.31649953,110990.0,110980.0,0.49693864]
[1757026324090,0.31649953,110990.0,110980.0,0.51787746]
[1757026324288,0.31649953,110990.0,110980.0,0.54068746]
[1757026325285,0.00046979,110990.0,110980.0,0.88068746]
[1757026326141,0.00046979,110990.0,110980.0,0.87968746]
[1757026326517,0.00046979,110990.0,110980.0,0.87768746]
[1757026326722,0.00046979,110990.0,110980.0,1.1937172]
[1757026326980,0.00046979,110990.0,110980.0,1.1987172]
[1757026327663,0.00046979,110990.0,110980.0,1.5987172]
[1757026327874,0.00046979,110990.0,110980.0,1.6007172]
[1757026328042,0.00046979,110990.0,110980.0,1.4454372]
[1757026328275,0.31649953,110990.0,110980.0,1.12740746]
[1757026328430,0.31649953,110990.0,110980.0,1.28268746]
[1757026328756,0.31649953,110990.0,110980.0,1.28168746]
[1757026329216,0.31649953,110990.0,110980.0,1.28768746]
[1757026329579,0.00046979,110990.0,110980.0,1.28768746]
[1757026332099,0.00046979,110990.0,110980.0,1.13740746]
[1757026332253,0.00046979,110990.0,110980.0,1.28768746]
[1757026335141,0.00046979,110990.0,110980.0,1.6037172]
[1757026335548,0.00046979,110990.0,110980.0,1.28768746]
[1757026335785,0.00046979,110990.0,110980.0,1.28764746]
[1757026337850,0.31649953,110990.0,110980.0,1.28764746]
[1757026338480,0.31649953,110990.0,110980.0,1.13740746]
[1757026338682,0.31649953,110990.0,110980.0,1.28764746]
[1757026339623,0.31655604,110990.0,110980.0,1.28764746]
[1757026341611,0.00046979,110990.0,110980.0,1.28764746]
[1757026350964,0.00046979,110990.0,110980.0,1.60373371]
[1757026351379,0.00046979,110990.0,110980.0,1.63081031]
[1757026351621,0.00046979,110990.0,110980.0,1.31472406]
[1757026352012,0.00046979,110990.0,110980.0,1.30472406]
[1757026352292,0.00046979,110990.0,110980.0,1.31672406]
[1757026354175,0.00046979,110990.0,110980.0,1.41176406]
[1757026354384,0.00046979,110990.0,110980.0,1.72785031]
[1757026354583,0.00046979,110990.0,110980.0,1.77785031]
[1757026355575,0.00046979,110990.0,110980.0,1.31152406]
[1757026355751,0.00046979,110990.0,110980.0,1.77785031]
[1757026356703,0.00046979,110990.0,110980.0,1.62761031]
[1757026356878,0.00046979,110990.0,110980.0,1.77785031]
[1757026358431,0.00046979,110990.0,110980.0,1.62761031]
[1757026358648,0.00046979,110990.0,110980.0,1.77785031]
[1757026358852,0.00046979,110990.0,110980.0,2.04335031]
[1757026359199,0.00046979,110990.0,110980.0,1.89311031]
[1757026359402,0.00046979,110990.0,110980.0,2.04335031]
[1757026361822,0.00046979,110990.0,110980.0,1.72726406]
[1757026362404,0.00046979,110990.0,110980.0,1.57702406]
[1757026362571,0.00046979,110990.0,110980.0,1.72722406]
[1757026363603,0.31608625,111010.0,111000.0,0.541119]
[1757026363783,0.31608625,111010.0,111000.0,0.8517518]
[1757026363983,0.31608625,111010.0,111000.0,0.8548118]
[1757026364143,0.31608625,111010.0,111000.0,1.2909]
[1757026364758,0.31608625,111010.0,111000.0,1.2989]
[1757026364964,0.31913625,111030.0,111020.0,0.18014772]
[1757026365160,0.31913625,111030.0,111020.0,0.27431555]
[1757026365405,0.32112625,111030.0,111020.0,0.42226371]
[1757026365951,0.6372125,111030.0,111020.0,0.42226371]
[1757026366393,0.6372125,111030.0,111020.0,0.27406371]
[1757026366614,0.81734399,111030.0,111020.0,0.42426371]
[1757026367100,0.81734399,111030.0,111020.0,0.27406371]
[1757026367304,0.6372125,111030.0,111020.0,0.42426371]
[1757026367525,0.81734399,111030.0,111020.0,0.27406371]
[1757026367739,0.81734399,111030.0,111020.0,0.42326371]
[1757026367944,0.81734399,111030.0,111020.0,0.42526371]
[1757026368163,0.81734399,111030.0,111020.0,0.42326371]
[1757026368531,0.81734399,111030.0,111020.0,0.42226371]
[1757026368741,0.81734399,111030.0,111020.0,0.42526371]
[1757026368991,0.81734399,111030.0,111020.0,0.42726371]
[1757026369788,0.81734399,111030.0,111020.0,0.09691599]
[1757026369973,0.81734399,111030.0,111020.0,0.24711599]
[1757026370193,0.84442145,111030.0,111020.0,0.24711599]
[1757026370751,0.84442145,111030.0,111020.0,0.24511599]
[1757026370951,0.84442145,111030.0,111020.0,0.24211599]
[1757026371202,0.84442145,111030.0,111020.0,0.24511599]
[1757026371742,0.84442145,111030.0,111020.0,0.09491599]
[1757026371926,0.84442145,111030.0,111020.0,0.24511599]
[1757026373967,0.84442145,111030.0,111020.0,0.09491599]
[1757026374173,0.84442145,111030.0,111020.0,0.24511599]
[1757026374410,0.84442145,111030.0,111020.0,0.31151599]
[1757026374824,0.84442145,111030.0,111020.0,0.49166371]
[1757026377642,0.84442145,111030.0,111020.0,0.49166371]
[1757026378498,0.21224895,111030.0,111020.0,0.49166371]
[1757026378706,0.84442145,111030.0,111020.0,0.49166371]
[1757026380403,0.21224895,111030.0,111020.0,0.49166371]
[1757026380605,0.84442145,111030.0,111020.0,0.34146371]
[1757026380803,0.84442145,111030.0,111020.0,0.49166371]
[1757026382092,0.65924996,111030.0,111020.0,0.49373371]
[1757026382292,0.65924996,111030.0,111020.0,0.49679371]
[1757026382506,0.66428996,111030.0,111020.0,0.49166371]
[1757026383993,0.66428996,111030.0,111020.0,0.49373371]
[1757026386178,0.65924996,111030.0,111020.0,0.49694371]
[1757026386744,0.6321725,111030.0,111020.0,0.49694371]
[1757026388652,0.00294,111050.0,111040.0,0.18011527]
[1757026388926,0.34814963,111050.0,111040.0,0.4244427]
[1757026389230,0.34814963,111050.0,111040.0,0.42219126]
[1757026389944,0.34814963,111050.0,111040.0,0.42223807]
[1757026390300,0.34914963,111050.0,111040.0,0.42223807]
[1757026391289,0.34520963,111050.0,111040.0,0.42438807]
[1757026391419,0.34520963,111050.0,111040.0,0.42759807]
[1757026391610,0.34520963,111050.0,111040.0,0.42859807]
[1757026391840,0.34520963,111050.0,111040.0,0.27743807]
[1757026392036,0.34520963,111050.0,111040.0,0.42959807]
[1757026392709,0.34520963,111050.0,111040.0,0.42638807]
[1757026392929,0.34315963,111050.0,111040.0,0.42959807]
[1757026393308,0.34315963,111050.0,111040.0,0.43059807]
[1757026393880,0.34315963,111050.0,111040.0,0.42759807]
[1757026394020,0.31608625,111050.0,111040.0,0.42959807]
[1757026394223,0.31608625,111050.0,111040.0,0.43259807]
[1757026395436,0.31608625,111050.0,111040.0,0.28243807]
[1757026395792,0.31608625,111050.0,111040.0,0.43259807]
[1757026399180,0.34315604,111060.0,111050.0,0.18009905]
[1757026399380,0.66129229,111060.0,111050.0,0.34277627]
[1757026399643,0.84378826,111060.0,111050.0,0.33837504]
[1757026400245,0.03205979,111060.0,111050.0,0.34152504]
[1757026400429,0.02911979,111060.0,111050.0,0.34352504]
[1757026400630,0.65871543,111060.0,111050.0,0.34673504]
[1757026401061,0.49956111,111080.0,111060.0,0.18007294]
[1757026401260,0.49956111,111080.0,111070.0,0.24432682]
[1757026401261,0.84850787,111080.0,111070.0,0.24432682]
[1757026401460,0.84850787,111080.0,111070.0,0.24207599]
[1757026401666,0.85055787,111080.0,111070.0,0.24207599]
[1757026401866,0.87762385,111080.0,111070.0,0.24207599]
[1757026402232,1.50926949,111080.0,111070.0,0.24207599]
[1757026403418,1.50926949,111080.0,111070.0,0.09191599]
[1757026403625,1.50926949,111080.0,111070.0,0.24203599]
[1757026403769,1.50926949,111080.0,111070.0,0.09291599]
[1757026403974,1.82509231,111080.0,111070.0,0.24303599]
[1757026404197,1.82434527,111080.0,111070.0,0.24303599]
[1757026404392,1.82434527,111080.0,111070.0,0.09391599]
[1757026404630,2.45599091,111080.0,111070.0,0.24403599]
[1757026405900,2.45599091,111080.0,111070.0,0.002]
[1757026406107,2.50944541,111080.0,111070.0,0.15212]
[1757026408219,2.5288533,111080.0,111070.0,0.15212]
[1757026409225,0.18008283,111060.0,111050.0,0.06636]
[1757026409425,0.18008283,111060.0,111050.0,0.15827599]
[1757026409426,0.84243788,111060.0,111050.0,0.15827599]
[1757026409627,2.44772361,111060.0,111050.0,0.30839599]
[1757026409828,2.5037568,111060.0,111050.0,0.21648]
[1757026410030,0.52009905,111050.0,111040.0,4.681e-05]
[1757026410242,1.46756751,111050.0,111040.0,0.2420828]
[1757026410497,1.47255751,111050.0,111040.0,0.2420828]
[1757026410728,1.49963331,111050.0,111040.0,0.2420828]
[1757026411143,1.49963331,111050.0,111040.0,0.2430828]
[1757026411492,1.49963331,111050.0,111040.0,0.0929628]
[1757026411700,1.49963331,111050.0,111040.0,0.2430828]
[1757026423482,1.52734717,111050.0,111040.0,0.2430828]
[1757026430533,1.49963331,111050.0,111040.0,0.2430828]
[1757026431607,1.49464331,111050.0,111040.0,0.2483228]
[1757026432229,1.49670331,111050.0,111040.0,0.2450928]
[1757026432468,1.49975331,111050.0,111040.0,0.2450928]
[1757026432833,1.49464331,111050.0,111040.0,0.2483228]
[1757026433665,1.49670331,111050.0,111040.0,0.2483228]
[1757026434498,1.49670331,111050.0,111040.0,0.2450928]
[1757026437193,1.49670331,111050.0,111040.0,0.2483228]
[1757026439094,1.49670331,111050.0,111040.0,0.2450928]
[1757026439601,1.51923394,111050.0,111040.0,0.2430828]
[1757026441790,1.51618394,111050.0,111040.0,0.2450928]
[1757026442292,1.51923394,111050.0,111040.0,0.2450928]
[1757026444041,1.51618394,111050.0,111040.0,0.2450928]
[1757026444989,1.51618394,111050.0,111040.0,0.2430828]
[1757026445195,1.51923394,111050.0,111040.0,0.2430828]
[1757026445930,1.51618394,111050.0,111040.0,0.2450728]
[1757026446544,1.51618394,111050.0,111040.0,0.2430828]
[1757026446759,1.51916394,111050.0,111040.0,0.2430828]
[1757026450757,1.51916394,111050.0,111040.0,0.0929628]
[1757026450965,1.5468778,111050.0,111040.0,0.15116681]
[1757026451172,2.49434626,111050.0,111040.0,0.15116681]
[1757026451357,1.5468778,111050.0,111040.0,0.15116681]
[1757026456663,1.54557571,111050.0,111040.0,0.15116681]
[1757026458535,1.54557571,111050.0,111040.0,0.15315681]
[1757026458536,1.51488185,111050.0,111040.0,0.15315681]
[1757026459295,1.51786185,111050.0,111040.0,0.15315681]
[1757026460798,1.51786185,111050.0,111040.0,0.15116681]
[1757026461456,1.20239989,111050.0,111040.0,0.15116681]
[1757026469673,1.19941989,111050.0,111040.0,0.15315681]
[1757026469905,1.19941989,111050.0,111040.0,0.15613681]
[1757026471208,1.19735989,111050.0,111040.0,0.15613681]
[1757026472183,1.19938989,111050.0,111040.0,0.15613681]
[1757026472885,1.19735989,111050.0,111040.0,0.15613681]
[1757026473447,1.19938989,111050.0,111040.0,0.15613681]
[1757026474371,1.19735989,111050.0,111040.0,0.15613681]
[1757026476044,1.19938989,111050.0,111040.0,0.15613681]
[1757026476867,1.19938989,111050.0,111040.0,0.22249681]
[1757026477218,1.20253989,111050.0,111040.0,0.21951681]
[1757026477770,1.20253989,111050.0,111040.0,0.21752681]
[1757026480629,1.19938989,111050.0,111040.0,0.21957681]
[1757026480839,1.19938989,111050.0,111040.0,0.22266681]
[1757026481586,1.19938989,111050.0,111040.0,0.15630681]
[1757026483207,1.19938989,111050.0,111040.0,0.15116681]
[1757026483421,1.20253989,111050.0,111040.0,0.15116681]
[1757026483637,1.20253989,111050.0,111040.0,0.15321681]
[1757026483885,1.19938989,111050.0,111040.0,0.15321681]
[1757026484060,1.19735989,111050.0,111040.0,0.15630681]
[1757026484270,1.19735989,111050.0,111040.0,0.2482228]
[1757026484470,1.19948989,111050.0,111040.0,0.2482228]
[1757026486548,1.19948989,111050.0,111040.0,0.3145828]
[1757026487631,1.20263989,111050.0,111040.0,0.3114928]
[1757026487977,1.19948989,111050.0,111040.0,0.3114928]
[1757026488174,1.19948989,111050.0,111040.0,0.3145828]
[1757026490886,1.19948989,111050.0,111040.0,0.3114928]
[1757026491301,1.19948989,111050.0,111040.0,0.2451328]
[1757026496449,1.19948989,111050.0,111040.0,0.2482228]
[1757026496872,1.19948989,111050.0,111040.0,0.3145828]
[1757026497175,0.88348664,111050.0,111040.0,0.3145828]
[1757026499911,1.19948989,111050.0,111040.0,0.3145428]
[1757026501427,0.8631781,111050.0,111040.0,0.49465807]
[1757026502321,0.54717485,111050.0,111040.0,0.49465807]
[1757026502617,0.0270758,111050.0,111040.0,0.49465807]
[1757026502789,0.34307905,111050.0,111040.0,0.49465807]
[1757026503882,0.34307905,111050.0,111040.0,0.49665807]
[1757026507220,0.31600325,111060.0,111050.0,0.18009905]
[1757026507592,0.65907516,111060.0,111050.0,0.27942627]
[1757026507797,0.65907516,111060.0,111050.0,0.27717504]
[1757026508432,0.65907516,111060.0,111050.0,0.27817504]
[1757026510295,0.20095053,111080.0,111050.0,0.28717999]
[1757026510381,0.20095053,111080.0,111060.0,0.18006844]
[1757026510598,0.02706598,111070.0,111060.0,0.27510443]
[1757026510814,0.02706598,111070.0,111060.0,0.42718443]
[1757026511500,0.34306923,111070.0,111060.0,0.42718443]
[1757026511933,0.34306923,111070.0,111060.0,0.42818443]
[1757026512179,0.02706598,111070.0,111060.0,0.42818443]
[1757026512618,0.34306923,111070.0,111060.0,0.42818443]
[1757026513264,0.34306923,111070.0,111060.0,0.42718443]
[1757026513486,0.34306923,111070.0,111060.0,0.27814443]
[1757026513708,0.34306923,111070.0,111060.0,0.42818443]
[1757026513943,0.34306923,111070.0,111060.0,0.42718443]
[1757026514156,0.34306923,111070.0,111060.0,0.42918443]
[1757026514553,0.34306923,111070.0,111060.0,0.43118443]
[1757026514752,0.34508923,111070.0,111060.0,0.43118443]
[1757026515386,0.34306923,111070.0,111060.0,0.43118443]
[1757026515758,0.34803923,111070.0,111060.0,0.42806443]
[1757026517042,0.34508923,111070.0,111060.0,0.42806443]
[1757026517829,0.34508923,111070.0,111060.0,0.27802443]
[1757026518032,0.52515585,111070.0,111060.0,0.42806443]
[1757026518410,0.34508923,111070.0,111060.0,0.42806443]
[1757026518613,0.34508923,111070.0,111060.0,0.43118443]
[1757026519054,0.34508923,111070.0,111060.0,0.42806443]
[1757026519276,0.34803923,111070.0,111060.0,0.42602443]
[1757026519872,0.34803923,111070.0,111060.0,0.42806443]
[1757026520076,0.34508923,111070.0,111060.0,0.42806443]
[1757026520460,0.34306923,111070.0,111060.0,0.43118443]
[1757026522475,0.34306923,111070.0,111060.0,0.43122443]
[1757026522687,0.34508923,111070.0,111060.0,0.28118443]
[1757026522893,0.34508923,111070.0,111060.0,0.43122443]
[1757026523508,0.6606042,111070.0,111060.0,0.43122443]
[1757026524327,0.6585842,111070.0,111060.0,0.43122443]
[1757026526936,0.02706598,111070.0,111060.0,0.43122443]
[1757026527153,0.6585842,111070.0,111060.0,0.43122443]
[1757026533113,0.63151822,111070.0,111060.0,0.43122443]
[1757026533416,0.63151822,111070.0,111060.0,0.42606443]
[1757026534381,0.53182108,111080.0,111070.0,0.18006662]
[1757026534612,0.53182108,111080.0,111070.0,0.33834261]
[1757026535589,1.1633393,111080.0,111070.0,0.33834261]
[1757026536016,1.1633393,111080.0,111070.0,0.33934261]
[1757026536882,1.1633393,111080.0,111070.0,0.34034261]
[1757026537527,0.97434126,111080.0,111070.0,0.34034261]
[1757026537675,0.63151822,111080.0,111070.0,0.34034261]
[1757026538499,0.63151822,111080.0,111070.0,0.34543261]
[1757026539041,0.64051192,111080.0,111070.0,0.34543261]
[1757026539219,0.63151822,111080.0,111070.0,0.34543261]
[1757026540823,0.63151822,111080.0,111070.0,0.49543261]
[1757026542485,0.63151822,111080.0,111070.0,0.51637143]
[1757026542691,0.0002,111090.0,111080.0,0.18005041]
[1757026542934,0.0002,111090.0,111080.0,0.27714703]
[1757026543163,0.0002,111090.0,111080.0,0.2770564]
[1757026543923,0.63171822,111090.0,111080.0,0.42910321]
[1757026545149,0.63171822,111090.0,111080.0,0.46999169]
[1757026546237,0.63171822,111090.0,111080.0,0.31999169]
[1757026546420,0.63171822,111090.0,111080.0,0.46999169]
[1757026548303,0.63171822,111090.0,111080.0,0.31999169]
[1757026548515,0.63171822,111090.0,111080.0,0.46999169]
[1757026549023,0.63382822,111090.0,111080.0,0.46999169]
[1757026549651,0.63382822,111090.0,111080.0,0.31999169]
[1757026549829,0.63382822,111090.0,111080.0,0.46999169]
[1757026550042,0.63382822,111090.0,111080.0,0.46702169]
[1757026550462,0.63382822,111090.0,111080.0,0.48000706]
[1757026550681,0.63382822,111090.0,111080.0,1.17046962]
[1757026550682,0.0002,111090.0,111080.0,1.17046962]
[1757026550897,0.31595911,111100.0,111090.0,0.1800342]
[1757026551103,0.31595911,111100.0,111090.0,0.70311061]
[1757026551322,0.31595911,111100.0,111090.0,0.70086019]
[1757026551533,0.31595911,111100.0,111090.0,0.87787264]
[1757026552607,0.31595911,111100.0,111090.0,0.88998317]